Cogmind - Beta 14 @@@ ROGUE MODE // 2024.12.14 @ 18:41:59 Player: dwarfinator Result: Destroyed by S-10 Pest with Light Assault Rifle Performance ------------- Evolutions (0) 0 Regions Visited (4) 800 Robots Destroyed (18) 90 Value Destroyed (163) 163 Prototype IDs (23) 460 Alien Tech Used (0) 0 Bonus (375) 375 TOTAL SCORE: 1888 Bonus ------- Follower Combat Kills 75 Aligned with FarCom 300 Cogmind --------- Core Integrity 0/250 Matter 300/300 Energy 261/265 System Corruption 0% Temperature Cool (0) Movement Rolling (145) Ox3 Location -9/Mines Parts ------- > --- POWER (1) -------- Improved Ion Engine > --- PROPULSION (2) --- Armored Huge Wheel > --- UTILITY (2) ------ Huge Storage Unit > --- WEAPON (2) ------- Heavy Assault Rifle Hammer > --- INVENTORY (25) --- Compact Wheel Compact Wheel Compact Wheel Humpback Large Battery (200) Large Battery (200) Compact Matter Pod (150) Structural Scanner Seismic Detector Hardened Heavy Armor Plating Improved Shield Generator Chronowheel EM Pulse Gun Medium Laser Guided Plasma Cannon AWS/Autocannon Grenade Launcher Grenade Launcher Remote Datajack Mining Laser Peak State ------------ > --- POWER ------------ Improved Ion Engine > --- PROPULSION ------- Armored Huge Wheel > --- UTILITY ---------- Huge Storage Unit Medium Armor Plating > --- WEAPON ----------- Heavy Assault Rifle Hammer > --- INVENTORY -------- Compact Wheel Compact Wheel Compact Wheel Humpback Large Battery Large Battery Compact Matter Pod Structural Scanner Seismic Detector Light Armor Plating Hardened Heavy Armor Plating Improved Shield Generator Chronowheel EM Pulse Gun Medium Laser Guided Plasma Cannon AWS/Autocannon Grenade Launcher Grenade Launcher Remote Datajack Mining Laser [Rating: 24] Favorites ----------- Power Ion Engine Engine Ion Engine Propulsion Compact Wheel Wheel Compact Wheel Utility Huge Storage Unit Device Seismic Detector Storage Huge Storage Unit Protection Medium Armor Plating Weapon Hammer Energy Gun Small Laser Energy Cannon Guided Plasma Cannon Ballistic Gun Heavy Assault Rifle Impact Weapon Hammer Build | -11 -10 -10 -10 -9 ------- Run | Yrd Mat Min Exi Min Slots Evolved . | . . . . . Power . | . . . . . Propulsion . | . . . . . Utility . | . . . . . Weapon . | . . . . . Parts Attached 35 | 6 17 1 2 9 Power 6 | 1 3 1 . 1 Engine 6 | 1 3 1 . 1 Core . | . . . . . Reactor . | . . . . . Propulsion 7 | 2 4 . . 1 Treads . | . . . . . Leg . | . . . . . Wheel 7 | 2 4 . . 1 Hover . | . . . . . Flight . | . . . . . Utility 10 | 1 5 . . 4 Device 3 | . 2 . . 1 Storage 4 | 1 3 . . . Processor . | . . . . . Hackware . | . . . . . Protection 3 | . . . . 3 Artifact . | . . . . . Weapon 12 | 2 5 . 2 3 Energy Gun 5 | 1 2 . 1 1 Energy Cannon 1 | . . . 1 . Ballistic Gun 2 | 1 . . . 1 Ballistic Cannon . | . . . . . Launcher . | . . . . . Special Weapon . | . . . . . Impact Weapon 4 | . 3 . . 1 Slashing Weapon . | . . . . . Piercing Weapon . | . . . . . Special Melee Weapon . | . . . . . Unidentified Prototypes . | . . . . . Parts Lost 2 | . . . . 2 Power . | . . . . . Propulsion . | . . . . . Utility 2 | . . . . 2 Weapon . | . . . . . Highest Loss Streak 2 | . . . . 2 To Critical Strikes . | . . . . . Average Slot Usage (%) 98 | . 98 100 99 95 Engine 13 | . 13 14 14 14 Wheel 26 | . 27 28 28 24 Device 10 | . 5 14 14 13 Storage 16 | . 21 14 14 14 Energy Gun 8 | . 7 14 13 2 Ballistic Gun 6 | . 7 . . 12 Impact Weapon 13 | . 12 14 14 13 Peak Build Rating 24 | 6 9 9 16 24 Average Rating 11 | 4 8 9 10 17 On Entrance 7 | . 6 9 9 14 Naked Turns . | . . . . . Heaviest Build 99 | 14 92 89 89 99 Greatest Support 32 | 20 32 32 32 32 Greatest Overweight (x) 5 | . 5 2 2 3 Average Overweight (x) 1 | . 1 2 2 2 Largest Inventory Capacity 25 | 8 25 25 25 25 Average Capacity 23 | 7 21 25 25 25 Most Carried 25 | 2 25 25 25 25 Average Carried 22 | . 20 24 23 24 Final Capacity 25 | 8 25 25 25 25 Final Carried 25 | 2 25 25 25 24 Class Distribution -------------------- 100% | Mutant Dominant Class ---------------- Mutant | -10/Materials Mutant | -10/Mines Mutant | -10/Exiles Mutant | -9/Mines Resources | -11 -10 -10 -10 -9 ----------- Run | Yrd Mat Min Exi Min Matter Collected 1283 | 241 312 118 527 85 Remotely . | . . . . . Salvage Created 534 | . 370 98 . 66 Parts 5 | . 1 4 . . Haulers Intercepted 2 | . 2 . . . Recyclers Shooed 4 | . 2 1 . 1 Parts Field Recycled . | . . . . . Retrieved Matter . | . . . . . Parts Self-Destructed . | . . . . . Prevented . | . . . . . Kills | -11 -10 -10 -10 -9 ------- Run | Yrd Mat Min Exi Min Combat Hostiles Destroyed 7 | . 4 1 . 2 Melee 2 | . 1 1 . . Classes Destroyed 8 | . 8 . . . Worker 2 | . 1 1 . . Tunneler 1 | . 1 . . . Hauler 2 | . 2 . . . Recycler 4 | . 2 1 . 1 Operator 1 | . 1 . . . Watcher 1 | . 1 . . . Swarmer 6 | . 3 1 . 2 Grunt 1 | . 1 . . . Best Kill Streak 3 | . 3 2 . 1 Combat Bots Only 2 | . 2 1 . 1 Max Kills in Single Turn 1 | . 1 1 . 1 Gunslinging . | . . . . . Exploded . | . . . . . Melee 1 | . 1 1 . . Uniques/NPCs Destroyed . | . . . . . Combat | -11 -10 -10 -10 -9 -------- Run | Yrd Mat Min Exi Min Hostile Shots Fired 148 | . 40 8 . 100 Missed 40 | . 9 2 . 29 Damage Taken 1019 | . 407 47 . 565 Core 253 | . 123 10 . 120 Absorbed by Shields . | . . . . . Regen/Repaired (Parts) 58 | . 58 . . . Core Remaining (%) 100 | 100 . . . . Volleys Fired . | . . . . . Largest . | . . . . . Hottest . | . . . . . Shots Fired . | . . . . . Gun . | . . . . . Cannon . | . . . . . Launcher . | . . . . . Special . | . . . . . Kinetic . | . . . . . Thermal . | . . . . . Explosive . | . . . . . Electromagnetic . | . . . . . Robot Hit Streak . | . . . . . Robot Miss Streak . | . . . . . Penetration Max . | . . . . . Secondary Targets . | . . . . . Shots Hit Robots 42 | . 29 5 . 8 Core Hits 4 | . 1 3 . . Critical Kills 2 | . . 2 . . Critical Parts Destroyed 5 | . 4 . . 1 Critical Strikes 7 | . 4 2 . 1 Smash 7 | . 4 2 . 1 Melee Attacks 78 | . 52 9 . 17 Impact 78 | . 52 9 . 17 Slashing . | . . . . . Piercing . | . . . . . Sneak Attacks 17 | . 11 3 . 3 Combat Hostiles . | . . . . . Follow-up Attacks . | . . . . . Damage Inflicted 1545 | . 1058 183 . 304 Guns . | . . . . . Cannons . | . . . . . Explosions . | . . . . . Melee 1545 | . 1058 183 . 304 Ramming . | . . . . . Kinetic . | . . . . . Thermal . | . . . . . Explosive . | . . . . . Electromagnetic . | . . . . . Impact 1545 | . 1058 183 . 304 Slashing . | . . . . . Piercing . | . . . . . Highest Corruption . | . . . . . Average Corruption . | . . . . . Corruption Purged . | . . . . . Corruption Blocked . | . . . . . Overload Shots . | . . . . . Overflow Damage 419 | . 328 . . 91 Projectiles . | . . . . . Explosions . | . . . . . Melee 419 | . 328 . . 91 Knockbacks 8 | . 4 2 . 2 Impact 8 | . 4 2 . 2 Kinetic . | . . . . . Secondary . | . . . . . Self-Inflicted Damage . | . . . . . Shots . | . . . . . Rammed . | . . . . . Targets Rammed . | . . . . . Kicked . | . . . . . Crushed . | . . . . . Highest Temperature . | . . . . . Average Temperature . | . . . . . Received Heat Transfer 60 | . 60 . . . Siege Activations . | . . . . . Robots Corrupted 11 | . 8 . . 3 Combat Hostiles 5 | . 3 . . 2 Parts Fried 24 | . 21 . . 3 Impact Corruptions 23 | . 18 . . 5 Robots Melted . | . . . . . Combat Hostiles . | . . . . . Parts Melted . | . . . . . Heat Transferred . | . . . . . Parts Sabotaged . | . . . . . Parts Stolen . | . . . . . Parts Stripped . | . . . . . Power Chain Reactions . | . . . . . Alert | -11 -10 -10 -10 -9 ------- Run | Yrd Mat Min Exi Min Peak Influence 134 | . 134 65 . 78 Initial 5 | . . 5 . . Average 34 | . 49 25 . 21 Maximum Alert Level . | . . . . . Low Security (%) 100 | 100 100 100 . 100 Level 1 . | . . . . . Level 2 . | . . . . . Level 3 . | . . . . . Level 4 . | . . . . . Level 5 . | . . . . . High Security . | . . . . . Max Security . | . . . . . Squads Dispatched 3 | . 2 . . 1 Investigation 1 | . . . . 1 Extermination . | . . . . . Reinforcement 2 | . 2 . . . Assault . | . . . . . Garrison . | . . . . . Intercept . | . . . . . Searches Triggered . | . . . . . Construction Impeded . | . . . . . Haulers Reinforced . | . . . . . Active Scanning Responses . | . . . . . Cargo Convoy Interrupts . | . . . . . Stealth | -11 -10 -10 -10 -9 --------- Run | Yrd Mat Min Exi Min Distress Signals . | . . . . . Communications Jammed . | . . . . . Distress Signals . | . . . . . Times Spotted 29 | . 16 3 . 10 Peak Tracking Total 6 | . 3 3 . 6 Tactical Retreats 3 | . . 1 . 2 Traps | -11 -10 -10 -10 -9 ------- Run | Yrd Mat Min Exi Min Traps Triggered 3 | . 3 . . . Indirectly . | . . . . . Trap Hack Attempts . | . . . . . Triggered . | . . . . . Disarmed . | . . . . . Reprogrammed . | . . . . . Reused . | . . . . . Traps Extracted . | . . . . . Installed . | . . . . . Triggered . | . . . . . Machines | -11 -10 -10 -10 -9 ---------- Run | Yrd Mat Min Exi Min Machines Disabled . | . . . . . Max in Single Turn . | . . . . . Machines Repaired . | . . . . . Machines Dismantled . | . . . . . Machines Sabotaged . | . . . . . Overloaded Fab Kills . | . . . . . Hacking | -11 -10 -10 -10 -9 --------- Run | Yrd Mat Min Exi Min Machines Accessed 11 | . 8 . 2 1 Terminals 6 | . 6 . . . Fabricators . | . . . . . Repair Stations 1 | . 1 . . . Recycling Units 1 | . 1 . . . Scanalyzers . | . . . . . Garrison Access . | . . . . . Total Hacks 24 | . 21 . 2 1 Successful 16 | . 13 . 2 1 Failed 8 | . 8 . . . Catastrophic . | . . . . . Database Lockouts . | . . . . . Manual 18 | . 17 . 1 . Terminals 17 | . 17 . . . Fabricators . | . . . . . Repair Stations 2 | . 2 . . . Recycling Units 2 | . 2 . . . Scanalyzers . | . . . . . Garrison Access . | . . . . . Terminal Hacks 7 | . 4 . 2 1 Record 1 | . . . 1 . Robot Analysis 3 | . 3 . . . Open Door 1 | . . . . 1 Zone Layout 1 | . 1 . . . Derelict Proto ID Bank 1 | . . . 1 . Fabricator Hacks . | . . . . . Repair Station Hacks 2 | . 2 . . . Scan Component 1 | . 1 . . . Repair 1 | . 1 . . . Recycling Unit Hacks . | . . . . . Scanalyzer . | . . . . . Garrison Access Hacks . | . . . . . Unauthorized Hacks 7 | . 7 . . . Terminals 7 | . 7 . . . Track 1 | . 1 . . . Botnet 2 | . 2 . . . Operators 1 | . 1 . . . Skim 3 | . 3 . . . Fabricators . | . . . . . Repair Stations . | . . . . . Recycling Units . | . . . . . Scanalyzers . | . . . . . Garrison Access . | . . . . . Data Cores Recovered . | . . . . . Used . | . . . . . Hacking Detections 7 | . 7 . . . Full Trace Events . | . . . . . Feedback Events . | . . . . . Feedback Blocked . | . . . . . Robot Schematics Acquired . | . . . . . Robots Built . | . . . . . Authchips . | . . . . . Time . | . . . . . Total Robot Build Rating . | . . . . . Part Schematics Acquired . | . . . . . Parts Built . | . . . . . Authchips . | . . . . . Time . | . . . . . Total Part Build Rating . | . . . . . Parts Repaired 1 | . 1 . . . Time 26 | . 26 . . . Parts Recycled . | . . . . . Recycled Matter . | . . . . . Retrieved Matter . | . . . . . Retrieved Components . | . . . . . Parts Scanalyzed . | . . . . . Part Schematics Acquired . | . . . . . Parts Damaged . | . . . . . Bothacking | -11 -10 -10 -10 -9 ------------ Run | Yrd Mat Min Exi Min Used RIF Installer . | . . . . . Robots Hacked . | . . . . . Non-combat . | . . . . . Combat . | . . . . . Robot Hacks Applied . | . . . . . Relay Couplers Released . | . . . . . Fabnet Peak Effective % . | . . . . . Robots Rewired . | . . . . . Allies Hacked . | . . . . . Hacks Repelled . | . . . . . Allies | -11 -10 -10 -10 -9 -------- Run | Yrd Mat Min Exi Min Total Allies 2 | . . . . 2 Largest Group 2 | . . . . 2 Highest-Rated Group 45 | . . . . 45 Highest-Rated Ally 31 | . . . . 31 Total Orders . | . . . . . Ally Attacks 15 | . . . . 15 Total Damage 213 | . . . . 213 Kills 3 | . . . . 3 Allies Corrupted . | . . . . . Allies Melted . | . . . . . Intel | -11 -10 -10 -10 -9 ------- Run | Yrd Mat Min Exi Min Robot Analysis Total 3 | . 3 . . . Derelict Logs Recovered . | . . . . . Drone Launches . | . . . . . Drone Recoveries . | . . . . . Exploration | -11 -10 -10 -10 -9 ------------- Run | Yrd Mat Min Exi Min Turns Passed 3052 | 38 1076 198 829 911 Spaces Moved 1919 | 35 590 126 625 543 Core 2 | 2 . . . . Treads . | . . . . . Legs . | . . . . . Wheels 1917 | 33 590 126 625 543 Hover . | . . . . . Flight . | . . . . . Fastest Speed 50 | 50 80 130 130 130 Average Speed 126 | 78 117 130 130 133 Slowest Speed 175 | 80 175 130 130 145 Overloaded Moves . | . . . . . Propulsion Burnouts . | . . . . . Robots Hopped . | . . . . . Cave-ins Triggered . | . . . . . Exploration Rate (%) 54 | 4 75 21 90 81 Regions Visited 4 Branch Regions 3 Pre-discovered Areas 2 | . . 1 1 . Known Exits Taken . | . . . . . Unknown Exits Taken 4 | 1 1 1 1 . Scrap Searched . | . . . . . Spaces Dug 9 | . 9 . . . Terrain Destroyed 9 | . 9 . . . Melee 9 | . 9 . . . Projectile . | . . . . . AOE . | . . . . . Terrain Rammed . | . . . . . Walls Destroyed . | . . . . . Machines Disabled . | . . . . . Actions | -11 -10 -10 -10 -9 --------- Run | Yrd Mat Min Exi Min Total 2430 | 42 888 146 649 705 Wait 279 | . 164 3 . 112 Move 1915 | 34 589 125 624 543 Hop . | . . . . . Pick Up 67 | 2 42 4 9 10 Fast Attach 15 | 6 6 . 2 1 Attach 5 | . 3 . . 2 Detach . | . . . . . Swap 15 | . 8 1 . 6 Drop 56 | . 24 4 14 14 Fire . | . . . . . Melee 78 | . 52 9 . 17 Ram . | . . . . . Kick . | . . . . . Crush . | . . . . . Escape Stasis . | . . . . . Rewire . | . . . . . Trap . | . . . . . Miscellaneous . | . . . . . Route ------- -11/Scrapyard -10/Materials (discovered 3 exits: [*Mat x2] / [*Min]) -10/Mines -10/Exiles (discovered 2 exits: *Min x2) -9/Mines History --------- Turn | Location | Event 26 | -11/Scrapyard | Discovered new exit (range 15) 39 | -11/Scrapyard | Entered Materials 103 | -10/Materials | Discovered new exit (range 3) 312 | -10/Materials | Build established: Mutant 440 | -10/Materials | Discovered new exit (range 10) 766 | -10/Materials | Discovered new exit (range 6) 905 | -10/Materials | Repaired Hammer 1115 | -10/Materials | Entered Mines 1116 | -10/Mines | Learned location of Storage (-8) 1127 | -10/Mines | Deemed a non-threat by the Exiles lab entrance 1127 | -10/Mines | Discovered new exit (range 5) 1130 | -10/Mines | Met a Derelict bent on vengeance 1256 | -10/Mines | Core integrity fell below 50% 1313 | -10/Mines | Entered Exiles 1330 | -10/Exiles | Discovered new exit (range 15) 1345 | -10/Exiles | Met 8R-AWN 1367 | -10/Exiles | Met EX-HEX 1416 | -10/Exiles | Met EX-DEC 1456 | -10/Exiles | Visited The Gauntlet 1693 | -10/Exiles | Learned location of Zion (-6) 1772 | -10/Exiles | Discovered new exit (range 14) 1861 | -10/Exiles | Met EX-BIN 1879 | -10/Exiles | Aligned with FarCom system 1880 | -10/Exiles | Given EX-Vault access code 1922 | -10/Exiles | Opened EX-Vault 1930 | -10/Exiles | Found Gui. Plasma Cannon 1940 | -10/Exiles | Found AWS/Autocannon 1969 | -10/Exiles | Warned to stay clear of 0b10 Research branches 1980 | -10/Exiles | Exiles lab attacked by MAIN.C 2019 | -10/Exiles | Found Chronowheel 2142 | -10/Exiles | Stole three prototypes: Chronowheel, Gui. Plasma Cannon, AWS/Autocannon 2142 | -10/Exiles | Entered Mines 2202 | -9/Mines | Joined a pair of Derelicts in attacking an 0b10 outpost 2772 | -9/Mines | Met a Derelict shopkeep closing up shop 3027 | -9/Mines | Core integrity fell below 20% 3053 | -9/Mines | Destroyed by S-10 Pest with Light Assault Rifle Last Messages --------------- 02826_ G-34 Mercenary destroyed. 02834_ Acquired 30 matter. 02911_ K-01 Serf collects debris. 02998_ S-10 Pest knocked back. 03001_ J5-YJ7(g) destroyed. 03004_ YA-UB4(z) destroyed. 03017_ Med. Armor Plating destroyed. 03021_ Destroyed Flight Unit. 03021_ S-10 Pest system corrupted by crushing effect. 03022_ S-10 Pest system terminally corrupted. 03022_ Flight Unit fried. 03024_ Acquired 9 matter. 03033_ T-07 Excavator destroyed. 03033_ S-10 Pest suffers critical hit (Destroy). 03033_ Acquired 6 matter. 03043_ S-10 Pest destroyed. 03044_ Lgt. Armor Plating destroyed. 03049_ Destroyed Flight Unit. 03049_ S-10 Pest system corrupted by crushing effect. 03050_ S-10 Pest system terminally corrupted. Map ----- +----------------------------------------------------+ | ######## #??# ### # | | ???????# #??# ################# ###### # | | ???????# #??# #???????????????###### ###???# ? | | ???????# #??# #??##########????????# #?????# ## | | ???????# #### #??# #????????# ######## # | | ???????# ## #??# #????????# #?# #? | | ???????## ## #??# """ #????????# ##### #?# ##? | | ????##### ## #### """ #????????# #???# #?# #?? | | ????# """ #????????# #???# #?# ### | | ????# ############ #????????? ????# ### | | ????# #??????????##########????????? ????# | | ##### #????????????????????????????? ????##### | | # #????????????????????????????? ????????## | | # #####????????????????????????????? ?????????# ## | | # #?????????????? ?????????????????? ?????????# #? | | # ##?????????? ????????????????? ?????????# #? | | ##?????? #???????????????????????### ## | | ##### #?????????????????????????# | | #???????????????????????????# #### | | " #### #????????????????????????????# #??? | | " ## #?????????????????######?????????????# #??? | | " #? #????????????????## ##????????????# #??? | | ##? #????????????????# % #????????????# #??? | | ####?? #???????????????## #???????????## #### | | ???????#????????????#### ##???????????# | | ???????????????????## @ ##???????????# # | | ???????????????????# %*%=#????????????# # | | ?????????????# =#!=#????????????# | | ??????????? ##ss#????????????# | | ??????????s #?#%=#????????????# # | | ???????????? #??#*=#????????????## #### | | ???????????? ####???# #?????????????####??? | | ???????????? #??????## #??????####?????????? | | ????????????? ??????## #?????## ######????? | | ???????????? ???????# #?????# #????? | | ????????????? ??????# s #?????# #????? | | ??????????????# ?????# ####?## #????# | | ???????????????# ???# ##"!### #?##### | | ???????????????# ??# ###" ==#X ### | | ??????????????## ## ###"= =* | | ??????????????# ##"! ! | | ?????????????# #"! # | | ?????????????# #####$## #"!### # | | ?????????????##???????# ?# ##### # | | ??????????????????????# ## ## *[ | | ??????????????????????# !%*= ### | | ??????????????????????#### =!= ##?### # | | ?????????????????????????# ###????## ## | | ?????????????????????????# ##???????# #? | | ?????????????????????????## #????????# #? | +----------------------------------------------------+ Best States ------------- Heat Dissipation 25 Energy Generation 12 Energy Capacity 265 Matter Stores 381 Matter Capacity 450 Sight Range 16 Terrain Scan Density 10 Armor Coverage 225 Evasion (%) 44 Item Schematics ----------------- None Robot Schematics ------------------ None Fabricated ------------ Nothing Alien Tech Used ----------------- None Achievements -------------- None Challenges ------------ None Game ------ Seed ReinforcedCorruptionTelecube Manual? 0 Play Time 00:56:58 Cumulative 202.6 hours Start 2024.12.14 @ 16:27:32 End 2024.12.14 @ 18:41:59 Sessions 3 Manual Loads 0 Difficulty Rogue Special Mode None Game No. 33 Rogue 30 Adventurer 3 Explorer 0 Win Type - Total 8 Types 8/0/0/0/0/0/0/0/0 Lore% 37 Gallery% 70 Achievement% 71 Wizard Run 0 Options --------- Layout 0 ASCII 0 Keyboard 0 Movement Numpad Keybinds 0 Fullscreen 1 Font 18/SmallcapsGlow Map View 76x50 Zoom Use 0% Tactical HUD 1 Map Filters NONE Filters NONE Steam 1 RUN: 2c25d7cb-5125-4127-9d85-a4f9615ba2cf